fUSD/lending_fUSD_20260314
["ID","MTS","AMOUNT","RATE_DAILY","PERIOD"]
[408345704,1773469840306,-250.0,0.0001982,2]
[408345705,1773469840316,-24952.24889272,0.000199,2]
[408345706,1773469840326,-3599.1656,0.000199,2]
[408345707,1773469840336,-3395.7041,0.000199,2]
[408345708,1773469840346,-7523.78741898,0.000199,2]
[408345709,1773469840356,-163.56,0.000199,2]
[408345710,1773469840365,-1343.0,0.00019927,2]
[408345711,1773469840375,-372.12,0.00019927,2]
[408345712,1773469840385,-500.0,0.00019933,2]
[408345713,1773469840395,-500.0,0.00019933,2]
[408345714,1773469840404,-500.0,0.00019933,2]
[408345715,1773469840414,-500.0,0.00019933,2]
[408345716,1773469840424,-500.0,0.00019933,2]
[408345717,1773469840434,-494.1269886,0.00019933,2]
[408345718,1773469840443,-500.0,0.00019933,2]
[408345719,1773469840453,-500.0,0.00019933,2]
[408345720,1773469840462,-500.0,0.00019933,2]
[408345721,1773469840472,-500.0,0.00019933,2]
[408345722,1773469840481,-200.0,0.00019933,2]
[408345723,1773469840491,-500.0,0.00019933,2]
[408345724,1773469840501,-500.0,0.00019933,2]
[408345725,1773469840510,-500.0,0.00019933,2]
[408345726,1773469840519,-500.0,0.00019933,2]
[408345727,1773469840529,-500.0,0.00019933,2]
[408345728,1773469840539,-174.61919141,0.00019933,2]
[408345729,1773469840548,-500.0,0.00019933,2]
[408345730,1773469840557,-500.0,0.00019933,2]
[408345731,1773469840567,-151.0,0.00019933,2]
[408345732,1773469840576,-277.35679052,0.00019933,2]
[408345733,1773469840586,-500.0,0.00019933,2]
[408345734,1773469840595,-500.0,0.00019933,2]
[408345735,1773469840605,-500.0,0.00019933,2]
[408345736,1773469840614,-500.0,0.00019933,2]
[408345737,1773469840624,-500.0,0.00019933,2]
[408345738,1773469840634,-500.0,0.00019933,2]
[408345739,1773469840643,-500.0,0.00019933,2]
[408345740,1773469840653,-500.0,0.00019933,2]
[408345741,1773469840663,-500.0,0.00019933,2]
[408345742,1773469840672,-500.0,0.00019933,2]
[408345743,1773469840682,-500.0,0.00019933,2]
[408345744,1773469840692,-230.71,0.00019933,2]
[408345745,1773469840701,-319.07,0.00019964,2]
[408345746,1773469840713,-500.0,0.00019973,2]
[408345747,1773469840722,-535.90597519,0.00019973,2]
[408345748,1773469840732,-500.0,0.00019973,2]
[408345749,1773469840741,-232.0,0.00019973,2]
[408345750,1773469840751,-500.0,0.00019988,2]
[408345751,1773469840760,-151.0,0.00019988,2]
[408345752,1773469840770,-256.68011407,0.0001999,2]
[408345753,1773469840779,-151.0,0.00019997,2]
[408345754,1773469840790,-5632.3108668,0.00019998,2]
[408345755,1773469840799,-168.241971,0.00019998,2]
[408345756,1773469840808,-300.0,0.00019999,2]
[408345757,1773469840818,-666.0,0.00019999,2]
[408345758,1773469840827,-500.0,0.00019999,2]
[408345759,1773469840837,-415.52822655,0.00019999,2]
[408345760,1773469840846,-271.42214829,0.00019999,2]
[408345761,1773469840856,-500.0,0.00019999,2]
[408345762,1773469840865,-500.0,0.00019999,2]
[408345763,1773469840875,-446.21822217,0.00019999,2]
[408345764,1773469840884,-408.43919302,0.00019999,2]
[408345765,1773469840893,-1299759.89205407,0.0002,2]
[408345766,1773469840905,-8790.3008581,0.0002,2]
[408345767,1773469840918,-8947.21879473,0.0002,2]
[408345768,1773469840929,-8943.78386462,0.0002,2]
[408345769,1773469840941,-9077.54866152,0.0002,2]
[408345778,1773469842852,-163.56,0.0001982,2]
[408345779,1773469842862,-752.00663152,0.00019927,2]
[408345787,1773469845497,7616.8,0.00032877,120]
[408345788,1773469845538,-618.46532638,0.00019927,2]
[408345885,1773469891928,2941.6,0.00032877,120]
[408345887,1773469921087,10000.0,0.00032877,120]
[408345888,1773469935349,2500.0,0.00032877,120]
[408345892,1773470250865,49000.0,0.00032876,120]
[408345894,1773470763784,640.0,0.00025434,120]
[408345895,1773470764001,640.0,0.00027746,120]
[408345907,1773470973288,-183.76,0.00014814,2]
[408345908,1773470973309,-250.0,0.00016296,2]
[408345909,1773470973330,-250.0,0.00016296,2]
[408345910,1773470973352,-250.0,0.00016583,2]
[408345911,1773470973373,-369.281364,0.00017855,2]
[408345912,1773470973394,-500.0,0.00017945,2]
[408345913,1773470973414,-160.93,0.00018385,2]
[408345914,1773470973436,-640.0,0.00018497,2]
[408345915,1773470973457,-150.0,0.00018501,2]
[408345916,1773470973691,-200.0,0.00018532,2]
[408345917,1773470973713,-1265.65,0.00018537,2]
[408345918,1773470973735,-1151.58,0.00018595,2]
[408345919,1773470973755,-300.0,0.00018689,2]
[408345920,1773470973775,-1200.0,0.00018691,2]
[408345921,1773470973795,-971.9,0.00018692,2]
[408345922,1773470973814,-166.66,0.000189,2]
[408345923,1773470973835,-740.0,0.00019096,2]
[408345924,1773470973857,-500.0,0.00019185,2]
[408345925,1773470973877,-2000.0,0.000192,2]
[408345926,1773470973900,-500.0,0.00019225,2]
[408345927,1773470973920,-500.0,0.00019225,2]
[408345928,1773470973940,-500.0,0.00019225,2]
[408345929,1773470973960,-500.0,0.00019225,2]
[408345930,1773470973981,-500.0,0.00019225,2]
[408345931,1773470974002,-231.238636,0.00019225,2]
[408345947,1773471031727,-169.86,0.000178,2]
[408345949,1773471031739,-712.00849656,0.00018512,2]
[408345952,1773471031844,-753.09618127,0.00018512,2]
[408345953,1773471031863,-1034.89532217,0.00018512,2]
[408345954,1773471031875,-250.0,0.00018512,2]
[408345955,1773471031886,-102.31125605,0.0001895,2]
[408345956,1773471031912,-789.06159669,0.0001895,2]
[408345957,1773471031929,-1608.62714726,0.0001895,2]
[408345958,1773471031939,-1601.57381176,0.0001895,2]
[408345959,1773471031950,-250.0,0.00018961,2]
[408345960,1773471031959,-1200.0,0.00019224,2]
[408345961,1773471031969,-268.761364,0.00019225,2]
[408345963,1773471031979,-500.0,0.00019225,2]
[408345965,1773471031988,-500.0,0.00019225,2]
[408345967,1773471031999,-500.0,0.00019225,2]
[408345969,1773471032009,-500.0,0.00019225,2]
[408345971,1773471032018,-200.0,0.00019225,2]
[408345973,1773471032028,-174.61919141,0.00019225,2]
[408345975,1773471032038,-500.0,0.00019225,2]
[408345977,1773471032048,-151.0,0.00019225,2]
[408345979,1773471032058,-277.35679052,0.00019225,2]
[408345981,1773471032071,-500.0,0.00019225,2]
[408345983,1773471032082,-500.0,0.00019225,2]
[408345985,1773471032091,-500.0,0.00019225,2]
[408345988,1773471032102,-500.0,0.00019225,2]
[408345989,1773471032111,-500.0,0.00019225,2]
[408345992,1773471032121,-500.0,0.00019225,2]
[408345993,1773471032130,-500.0,0.00019225,2]
[408345995,1773471032141,-500.0,0.00019225,2]
[408345997,1773471032161,-500.0,0.00019225,2]
[408345999,1773471032178,-500.0,0.00019225,2]
[408346001,1773471032189,-500.0,0.00019225,2]
[408346003,1773471032202,-500.0,0.0001924,2]
[408346005,1773471032211,-1000.0,0.0001926,2]
[408346007,1773471032221,-151.0,0.0001928,2]
[408346009,1773471032230,-197.30699258,0.00019335,2]
[408346011,1773471032241,-740.0,0.00019348,2]
[408346013,1773471032252,-740.0,0.00019389,2]
[408346015,1773471032262,-168.0,0.00019443,2]
[408346017,1773471032272,-168.0,0.00019452,2]
[408346019,1773471032282,-168.0,0.00019455,2]
[408346021,1773471032295,-168.0,0.00019469,2]
[408346023,1773471032305,-168.0,0.00019481,2]
[408346024,1773471032315,-168.0,0.00019495,2]
[408346026,1773471032324,-740.0,0.00019513,2]
[408346028,1773471032333,-166.66,0.00019523,2]
[408346029,1773471032342,-1151.58,0.00019525,2]
[408346030,1773471032351,-1000.0,0.00019534,2]
[408346031,1773471032361,-168.0,0.00019537,2]
[408346032,1773471032371,-168.0,0.00019555,2]
[408346033,1773471032381,-168.0,0.00019565,2]
[408346034,1773471032390,-168.0,0.00019576,2]
[408346035,1773471032400,-250.0,0.0001958,2]
[408346036,1773471032410,-329.27130717,0.0001958,2]
[408346037,1773471032420,-2500.0,0.0001958,2]
[408346038,1773471032429,-18487.0297,0.000196,2]
[408346039,1773471032439,-2186.7437,0.000196,2]
[408346040,1773471032448,-168.0,0.00019614,2]
[408346041,1773471032457,-1000.0,0.00019621,2]
[408346042,1773471032476,-8965.47043593,0.00019622,2]
[408346043,1773471032486,-168.0,0.00019641,2]
[408346044,1773471032495,-168.0,0.00019656,2]
[408346045,1773471032505,-500.96532559,0.00019673,2]
[408346046,1773471032514,-500.0,0.00019699,2]
[408346047,1773471032524,-400.07790593,0.00019699,2]
[408346048,1773471032534,-500.0,0.00019699,2]
[408346049,1773471032544,-500.0,0.00019699,2]
[408346050,1773471032553,-288.3240717,0.00019699,2]
[408346051,1773471032563,-105745.58319987,0.000197,2]
[408346052,1773471032575,-26224.84611917,0.000197,2]
[408346053,1773471032586,-21786.44181815,0.000197,2]
[408346054,1773471032597,-28592.14642569,0.000197,2]
[408346055,1773471032608,-4816.15841494,0.000197,2]
[408346056,1773471032620,-4447.10351561,0.000197,2]
[408346064,1773471038602,-221257.42900657,0.000197,2]
[408346065,1773471038613,-168.0,0.00019722,2]
[408346068,1773471038824,-208.93,0.00019749,2]
[408346070,1773471038834,-168.0,0.00019756,2]
[408346072,1773471038843,-216.52323508,0.00019759,2]
[408346073,1773471038853,-202.96514284,0.00019773,2]
[408346075,1773471038862,-301.71339637,0.00019773,2]
[408346076,1773471038871,-287.61899177,0.00019773,2]
[408346078,1773471038881,-1000.0,0.000198,2]
[408346079,1773471038891,-1000.0,0.00019808,2]
[408346080,1773471038900,-165.388,0.0001982,2]
[408346081,1773471038911,-165.38801,0.0001982,2]
[408346082,1773471038922,-165.38801,0.0001982,2]
[408346083,1773471038931,-4890.0,0.00019821,2]
[408346085,1773471038941,-165.38801,0.0001984,2]
[408346086,1773471038950,-165.38801,0.0001984,2]
[408346087,1773471038959,-165.38801,0.0001984,2]
[408346088,1773471038969,-2796.19,0.00019859,2]
[408346089,1773471038979,-168.0,0.00019866,2]
[408346090,1773471038989,-5000.0,0.000199,2]
[408346091,1773471038999,-1080.87170632,0.000199,2]
[408346092,1773471039008,-1080.87170631,0.000199,2]
[408346093,1773471039017,-1080.87170631,0.000199,2]
[408346094,1773471039026,-1080.87170631,0.000199,2]
[408346095,1773471039036,-168.41,0.00019924,2]
[408346096,1773471039045,-1000.0,0.00019927,2]
[408346097,1773471039054,-1000.0,0.00019927,2]
[408346098,1773471039063,-1000.0,0.00019927,2]
[408346099,1773471039072,-1000.0,0.00019927,2]
[408346100,1773471039081,-1000.0,0.00019927,2]
[408346101,1773471039091,-1000.0,0.00019927,2]
[408346102,1773471039104,-1000.0,0.00019927,2]
[408346103,1773471039114,-1000.0,0.00019927,2]
[408346104,1773471039123,-1000.0,0.00019927,2]
[408346105,1773471039133,-683.012,0.00019927,2]
[408346106,1773471039142,-168.0,0.00019931,2]
[408346107,1773471039152,-2733.15,0.0001995,2]
[408346108,1773471039162,-1000.0,0.0001997,2]
[408346109,1773471039173,-949.93480678,0.0001997,2]
[408346110,1773471039183,-168.0,0.0001997,2]
[408346111,1773471039192,-285.90743511,0.00019972,2]
[408346112,1773471039201,-189.99550381,0.00019972,2]
[408346113,1773471039212,-500.0,0.00019972,2]
[408346114,1773471039222,-512.35275551,0.00019972,2]
[408346115,1773471039231,-297.01217445,0.00019973,2]
[408346116,1773471039240,-398.50152088,0.00019973,2]
[408346117,1773471039250,-503.38689144,0.00019973,2]
[408346118,1773471039259,-501.20574245,0.00019973,2]
[408346119,1773471039269,-505.62043158,0.00019973,2]
[408346120,1773471039279,-150.22155762,0.00019973,2]
[408346121,1773471039288,-501.43892532,0.00019973,2]
[408346122,1773471039299,-504.10920007,0.00019973,2]
[408346123,1773471039308,-606.27736836,0.00019973,2]
[408346124,1773471039318,-500.0,0.00019973,2]
[408346125,1773471039327,-500.0,0.00019973,2]
[408346126,1773471039337,-249.99,0.00019973,2]
[408346127,1773471039347,-2232.5526821,0.00019986,2]
[408346128,1773471039357,-229.3,0.00019988,2]
[408346129,1773471039366,-151.0,0.00019997,2]
[408346130,1773471039377,-310.01472424,0.00019999,2]
[408346131,1773471039386,-259.10556587,0.00019999,2]
[408346132,1773471039396,-9233.1541961,0.00019999,2]
[408346133,1773471039406,-1537.1546718,0.00019999,2]
[408346134,1773471039416,-34307.4937118,0.00019999,2]
[408346135,1773471039427,-30195.4024884,0.00019999,2]
[408346136,1773471039436,-60507.4852886,0.0002,2]
[408346137,1773471039455,-1511.38555043,0.0002,2]
[408346138,1773471039471,-558.38385669,0.0002,2]
[408346139,1773471039486,-514.90133109,0.0002,2]
[408346140,1773471039501,-381.83085588,0.0002,2]
[408346163,1773471042879,-698.83284447,0.000195,2]
[408346164,1773471043123,-887.1555738,0.000195,2]
[408346165,1773471043136,-58836.69938173,0.000195,2]
[408346166,1773471043147,-16344.58969271,0.0002,2]
[408346170,1773471043686,-779.54605746,0.0002,2]
[408346172,1773471043698,-1897.46000004,0.0002,2]
[408346175,1773471043709,-258.07893787,0.0002,2]
[408346317,1773471045689,-335.62337251,0.0001998,2]
[408346318,1773471045700,-100.87662749,0.0002,2]
[408346319,1773471045712,-6414.40577931,0.0002,2]
[408346320,1773471045759,-5901.98420639,0.0002,2]
[408346321,1773471046111,-150.0,0.0001998,2]
[408346323,1773471046120,-6895.6,0.0002,2]
[408346329,1773471510880,3980.75,0.00032877,120]
[408346330,1773471607045,203.89656672,0.00017795,120]
[408346332,1773471690916,166.22,9.088e-05,2]
[408346334,1773471734556,2500.0,0.00024,30]
[408346338,1773471749724,2500.0,0.00032877,120]
[408346348,1773472053541,5000.0,0.00032877,120]
[408346349,1773472118366,-250.0,0.00015,2]
[408346350,1773472118387,-274.0,0.00015,2]
[408346351,1773472118407,-3299.89,0.00015712,2]
[408346352,1773472118427,-1200.0,0.00015972,2]
[408346353,1773472118448,-300.0,0.00015972,2]
[408346354,1773472118470,-501.32515217,0.00015973,2]
[408346355,1773472118494,-500.0,0.00015973,2]
[408346356,1773472118515,-506.20767986,0.00015973,2]
[408346357,1773472118537,-501.52281394,0.00015973,2]
[408346358,1773472118555,-500.0,0.00015973,2]
[408346359,1773472118574,-500.0,0.00015973,2]
[408346360,1773472118592,-501.57053664,0.00015973,2]
[408346361,1773472118611,-502.27112461,0.00015973,2]
[408346362,1773472118630,-501.34705791,0.00015973,2]
[408346363,1773472118649,-161.86563487,0.00015973,2]
[408346364,1773472120310,-338.13436513,0.00015973,2]
[408346365,1773472120333,-200.0,0.0001599,2]
[408346366,1773472120356,-300.0,0.00015999,2]
[408346367,1773472120376,-9161.86563487,0.00016,2]
[408346368,1773472126268,-10000.0,0.00016,2]
[408346369,1773472127420,-10000.0,0.00016,2]
[408346370,1773472144779,-300.0,0.00015999,2]
[408346371,1773472144800,-5596.0,0.00016,2]
[408346530,1773472200997,150.0,0.00022216,120]
[408346531,1773472201974,155.84485009,0.00022216,120]
[408346537,1773472231869,-1200.0,0.00015999,2]
[408346538,1773472231880,-300.0,0.00015999,2]
[408346539,1773472231890,-300.0,0.00015999,2]
[408346540,1773472231899,-679.75276962,0.00016,2]
[408346541,1773472231999,-416.99,0.00016,2]
[408346542,1773472232011,-612.8091277,0.00016,2]
[408346543,1773472232025,-54387.90783125,0.00016,2]
[408346544,1773472232035,-600.0,0.000161,2]
[408346545,1773472232045,-250.0,0.000161,2]
[408346546,1773472232054,-6849.75118705,0.000162,5]
[408346548,1773472232064,-300.0,0.00017,2]
[408346550,1773472232073,-740.66966642,0.000171,2]
[408346551,1773472232083,-390.0,0.00017119,2]
[408346552,1773472232092,-166.66,0.00017475,2]
[408346553,1773472232109,-420.0,0.00017492,2]
[408346554,1773472232121,-1680.0,0.0001758,2]
[408346555,1773472232130,-300.0,0.00017599,2]
[408346556,1773472232140,-2500.0,0.00017599,2]
[408346557,1773472232150,-300.67436292,0.00017599,2]
[408346558,1773472232159,-600.0,0.000176,2]
[408346559,1773472232169,-250.0,0.000176,2]
[408346560,1773472232179,-500.0,0.00017726,2]
[408346561,1773472232188,-166.66,0.00017843,2]
[408346562,1773472232198,-170.27,0.0001793,2]
[408346563,1773472232209,-5558.27119252,0.00018,2]
[408346564,1773472232218,-2000.0,0.0001801,2]
[408346565,1773472232228,-200.0,0.00018136,2]
[408346566,1773472232239,-166.66,0.00018211,2]
[408346567,1773472232251,-11149.12,0.00018275,2]
[408346568,1773472232261,-166.66,0.00018579,2]
[408346569,1773472232272,-251.051651,0.00018706,2]
[408346570,1773472232282,-413.0,0.00018894,2]
[408346571,1773472232292,-6493.33119515,0.000189,2]
[408346572,1773472232302,-500.0,0.00018904,2]
[408346573,1773472232314,-500.0,0.0001893,2]
[408346575,1773472232326,-500.0,0.0001893,2]
[408346577,1773472232339,-250.0,0.0001893,2]
[408346579,1773472232350,-603.59784427,0.0001893,2]
[408346580,1773472232360,-250.0,0.0001893,2]
[408346581,1773472232371,-277.82178945,0.0001893,2]
[408346582,1773472232380,-500.0,0.0001893,2]
[408346583,1773472232390,-495.99153825,0.0001893,2]
[408346584,1773472232400,-500.0,0.0001893,2]
[408346585,1773472232409,-250.0,0.0001893,2]
[408346586,1773472232420,-250.0,0.0001893,2]
[408346587,1773472232429,-161.49585947,0.0001893,2]
[408346588,1773472232439,-500.0,0.0001893,2]
[408346589,1773472232449,-202.70106521,0.0001893,2]
[408346590,1773472232459,-500.0,0.0001893,2]
[408346591,1773472232468,-500.0,0.0001893,2]
[408346592,1773472232478,-174.61919141,0.0001893,2]
[408346593,1773472232492,-500.0,0.0001893,2]
[408346594,1773472232502,-500.0,0.0001893,2]
[408346595,1773472232511,-500.0,0.0001893,2]
[408346596,1773472232522,-500.0,0.0001893,2]
[408346597,1773472232533,-151.0,0.0001893,2]
[408346598,1773472232544,-500.0,0.0001893,2]
[408346599,1773472232554,-277.35679052,0.0001893,2]
[408346600,1773472232563,-500.0,0.0001893,2]
[408346601,1773472232573,-500.0,0.0001893,2]
[408346602,1773472232584,-500.0,0.0001893,2]
[408346603,1773472232594,-500.0,0.0001893,2]
[408346604,1773472232604,-480.68114497,0.0001893,2]
[408346605,1773472232613,-166.66,0.00018947,2]
[408346606,1773472232623,-500.0,0.00018985,2]
[408346607,1773472232633,-151.0,0.00018985,2]
[408346608,1773472232643,-350.0,0.00019,2]
[408346609,1773472232652,-5060.81967597,0.00019,2]
[408346610,1773472232662,-4741.00799026,0.00019,2]
[408346611,1773472232671,-360.86993681,0.0001901,7]
[408346612,1773472232681,-6493.33119506,0.00019011,2]
[408346613,1773472232691,-413.0,0.00019027,2]
[408346614,1773472232700,-413.0,0.0001903,2]
[408346615,1773472232709,-500.0,0.0001904,2]
[408346616,1773472232719,-151.0,0.0001904,2]
[408346617,1773472232728,-413.0,0.00019066,2]
[408346618,1773472232738,-413.0,0.00019091,2]
[408346619,1773472232747,-500.0,0.00019095,2]
[408346620,1773472232757,-151.0,0.00019095,2]
[408346621,1773472232767,-1228.18034748,0.000191,2]
[408346622,1773472232777,-4076.85,0.00019106,2]
[408346623,1773472232788,-6493.33119506,0.00019122,2]
[408346624,1773472232798,-587.0,0.00019125,2]
[408346625,1773472232807,-1082.0588,0.00019133,2]
[408346626,1773472232817,-500.0,0.0001915,2]
[408346627,1773472232826,-151.0,0.0001915,2]
[408346628,1773472232836,-413.0,0.00019174,2]
[408346629,1773472232846,-210.33695633,0.00019188,2]
[408346630,1773472232855,-500.0,0.00019188,2]
[408346631,1773472232864,-500.0,0.00019188,2]
[408346632,1773472232874,-500.0,0.00019188,2]
[408346633,1773472232884,-500.0,0.00019188,2]
[408346634,1773472232893,-500.57919258,0.00019188,2]
[408346635,1773472232903,-500.0,0.00019188,2]
[408346636,1773472232912,-319.30548858,0.00019188,2]
[408346637,1773472232921,-500.0,0.00019188,2]
[408346638,1773472232930,-500.0,0.00019188,2]
[408346639,1773472232940,-289.32310043,0.00019189,2]
[408346640,1773472232950,-413.0,0.00019194,2]
[408346641,1773472232961,-413.0,0.00019203,2]
[408346642,1773472232970,-500.0,0.00019205,2]
[408346643,1773472232980,-151.0,0.00019205,2]
[408346644,1773472232991,-6493.33119506,0.00019233,2]
[408346645,1773472233000,-1000.0,0.0001926,2]
[408346646,1773472233010,-500.0,0.0001926,2]
[408346647,1773472233020,-151.0,0.0001926,2]
[408346648,1773472233034,-166.66,0.00019315,2]
[408346649,1773472233043,-500.0,0.00019315,2]
[408346650,1773472233052,-151.0,0.00019315,2]
[408346651,1773472233062,-2351.0,0.00019317,2]
[408346652,1773472233070,-923.0,0.00019335,2]
[408346653,1773472233079,-1214.0,0.00019335,2]
[408346654,1773472233089,-6493.33119506,0.00019344,2]
[408346655,1773472233098,-500.0,0.0001937,2]
[408346656,1773472233107,-151.0,0.0001937,2]
[408346657,1773472233126,-500.0,0.00019425,2]
[408346658,1773472233136,-151.0,0.00019425,2]
[408346659,1773472233146,-17886.1525,0.00019455,2]
[408346660,1773472233156,-500.0,0.00019455,2]
[408346661,1773472233166,-500.0,0.00019455,2]
[408346662,1773472233176,-6493.33119506,0.00019456,2]
[408346663,1773472233186,-181.08010149,0.00019478,2]
[408346664,1773472233196,-287.61899177,0.00019478,2]
[408346665,1773472233205,-413.0,0.0001948,2]
[408346666,1773472233215,-600.2919257,0.0001948,2]
[408346667,1773472233225,-151.0,0.0001948,2]
[408346668,1773472233234,-413.0,0.00019521,2]
[408346669,1773472233243,-776.8561,0.00019522,2]
[408346670,1773472233253,-1000.0,0.00019534,2]
[408346671,1773472233262,-6493.33119506,0.00019567,2]
[408346672,1773472233272,-413.0,0.00019598,2]
[408346673,1773472233282,-1000.0,0.000196,2]
[408346674,1773472233292,-413.0,0.00019637,2]
[408346675,1773472233301,-413.0,0.00019664,2]
[408346676,1773472233310,-6493.33119506,0.00019678,2]
[408346677,1773472233321,-2000.0,0.000197,2]
[408346678,1773472233331,-413.0,0.00019703,2]
[408346679,1773472233348,-1006.68660366,0.00019703,2]
[408346680,1773472233360,-503.04895662,0.00019735,2]
[408346681,1773472233370,-500.0,0.00019735,2]
[408346682,1773472233380,-1024.70815383,0.00019735,2]
[408346683,1773472233389,-651.11556502,0.00019735,2]
[408346684,1773472233400,-552.84544583,0.00019789,2]
[408346685,1773472237929,-3731.8588095,0.00019789,2]
[408346686,1773472237992,-2208.62693973,0.00019789,2]
[408346687,1773472238002,-2000.0,0.000198,2]
[408346688,1773472238012,-2000.0,0.000198,2]
[408346689,1773472238022,-151.37306027,0.00019802,2]
[408346690,1773472238113,-59.74934873,0.00019802,2]
[408346691,1773472238122,-1000.0,0.00019808,2]
[408346692,1773472238132,-227.76,0.0001984,2]
[408346693,1773472238143,-250.0,0.00019859,2]
[408346694,1773472238153,-501.02094039,0.00019873,2]
[408346695,1773472238163,-515.29195413,0.00019899,2]
[408346696,1773472238172,-250.0,0.000199,2]
[408346698,1773472238182,-4716.97943179,0.000199,2]
[408346718,1773472240120,-361.01643239,0.000199,2]
[408346719,1773472240629,-1415.33533088,0.000199,2]
[408346720,1773472240639,-4244.83675192,0.000199,2]
[408346721,1773472240650,-367.10936291,0.000199,2]
[408346722,1773472240660,-526.61878351,0.000199,2]
[408346723,1773472240671,-13650.76327695,0.000199,2]
[408346728,1773472243228,-513.85902006,0.000199,2]
[408346730,1773472245908,-2041.59274058,0.000199,2]
[408346731,1773472246202,-65650.57828425,0.000199,2]
[408346732,1773472246213,-365.7662,0.000199,2]
[408346733,1773472246223,-1221.0805748,0.000199,2]
[408346734,1773472246232,-250.0,0.00019927,2]
[408346735,1773472246243,-250.0,0.0001995,2]
[408346736,1773472246252,-501.90258478,0.00019973,2]
[408346737,1773472246262,-500.0,0.00019973,2]
[408346738,1773472246271,-500.0,0.00019973,2]
[408346739,1773472246280,-500.0,0.00019973,2]
[408346740,1773472246289,-500.0,0.00019973,2]
[408346741,1773472246298,-500.0,0.00019973,2]
[408346742,1773472246307,-501.83165766,0.00019973,2]
[408346743,1773472246317,-160.26884412,0.00019973,2]
[408346744,1773472246326,-500.0,0.00019973,2]
[408346745,1773472246335,-500.0,0.00019973,2]
[408346746,1773472246345,-500.0,0.00019973,2]
[408346747,1773472246355,-210.33794899,0.00019973,2]
[408346748,1773472246364,-250.0,0.00019986,2]
[408346749,1773472246374,-171.12007605,0.0001999,2]
[408346751,1773472246383,-171.12007605,0.0001999,2]
[408346752,1773472246392,-171.12007605,0.0001999,2]
[408346753,1773472246402,-151.0,0.00019997,2]
[408346754,1773472246411,-159.50117954,0.00019997,2]
[408346755,1773472246420,-5871.0,0.0002,2]
[408346756,1773472246430,-68298.26358235,0.0002,2]
[408346757,1773472246445,-383.05560583,0.0002,2]
[408346758,1773472246457,-1401.50376523,0.0002,2]
[408346759,1773472246468,-1152.87628298,0.0002,2]
[408346761,1773472554498,28571.23191469,0.00032877,120]
[408346763,1773472634776,3110.0,0.00032876,120]
[408346766,1773473205659,460.33,0.00025888,120]
[408346767,1773473205866,460.33,0.00028241,120]
[408346768,1773473226258,4500.0,0.00032,120]
[408346778,1773473432073,-170.81,0.00014933,2]
[408346779,1773473432083,-250.0,0.00015,2]
[408346780,1773473432093,-1644.55219313,0.00016426,2]
[408346781,1773473432104,-345.51780687,0.00016426,2]
[408346782,1773473432115,-300.0,0.00016426,2]
[408346783,1773473432204,-2709.93,0.00016426,2]
[408346784,1773473432215,-300.0,0.00017,2]
[408346785,1773473432224,-434.0,0.00017644,2]
[408346786,1773473432234,-397.17,0.00018499,2]
[408346787,1773473432244,-760.55,0.00018639,2]
[408346788,1773473432254,-1200.0,0.0001879,2]
[408346789,1773473432264,-3240.0,0.00018791,2]
[408346790,1773473432274,-77272.04314173,0.000188,2]
[408346791,1773473432283,-460.33,0.00018828,2]